Workbook

Sheet MSU
B1: Nestori Moisio | E1: 25.3.1999 Vaasa
B2: SUPERPESIS | E2: Runkosarja | I2: Kärkilyönnit (KL), pesänvälit | P2: Ylempi loppusarja | W2: Alempi loppusarja | AD2: Arvo-ottelut | AH2: Mitalit
B3: Vuosi | C3: Sija | D3: Seura | E3: OTT | F3: KUN | G3: LÖI | H3: TOI | I3: KL | J3: 0 > 1 | K3: 1 > 2 | L3: 2 > 3 | M3: 3 > k | N3: KL-% | P3: OTT | Q3: KUN | R3: LÖI | S3: TOI | T3: KL | U3: KL-% | W3: OTT | X3: KUN | Y3: LÖI | Z3: TOI | AA3: KL | AB3: KL-% | AD3: IL | AE3: LL | AF3: hSM | AG3: K | AH3: H | AI3: P
B4: 2015 | C4: 9. | D4: PKP | F4: suomensarja
B5: 2016 | C5: 8. | D5: PKP | F5: suomensarja
B6: 2017 | C6: 1. | D6: PuPe 2 | F6: suomensarja
B7: 2017 | C7: 6. | D7: PuPe | F7: ykköspesis
B8: 2018 | C8: 4. | D8: PuPe | F8: suomensarja
B9: 2019 | C9: 3. | D9: PuPe | F9: ykköspesis | W9: 3 | X9: 0 | Y9: 0 | Z9: 1 | AA9: 6 | AB9: 46.2 % | AC9: 13
B10: 2020 | C10: 3. | D10: PuPe | F10: ykköspesis
B11: 2021 | C11: 3. | D11: PuPe | F11: ykköspesis
B12: 2021 | C12: 5. | D12: JoMa | E12: 2 | F12: 0 | G12: 0 | H12: 0 | I12: 1 | J12: 1 | K12: 0 | L12: 0 | M12: 0 | N12: 16.7 % | O12: 6
B13: 2022 | C13: 4. | D13: PuPe | F13: ykköspesis
B14: 2023 | C14: 3. | D14: PuPe | F14: ykköspesis
B15: Yhteensä | E15: =SUM(E4:E14) -> 2 | F15: 0 | G15: 0 | H15: 0 | I15: 1 | J15: 1 | K15: 0 | L15: 0 | M15: 0 | N15: =PRODUCT(I15/O15) -> 16.7 % | O15: =SUM(O4:O14) -> 6 | P15: 0 | Q15: 0 | R15: 0 | S15: 0 | T15: 0 | U15: 0.0 % | V15: =SUM(V4:V14) -> 0 | W15: 3 | X15: 0 | Y15: 0 | Z15: 1 | AA15: 6 | AB15: =PRODUCT(N21) -> 46.2 % | AC15: =SUM(AC4:AC14) -> 13 | AD15: 0 | AE15: 0 | AF15: 0 | AG15: 0 | AH15: 0 | AI15: 0
B16: Pesispörssi | D16: =SUM(F15:H15)+((I15-F15-G15)/3)+(E15/3)+(AD15*25)+(AE15*25)+(AF15*10)+(AG15*25)+(AH15*20)+(AI15*15)+20-20 -> 1.0
B18: URA SUPERISSA | E18: OTT | F18: KUN | G18: LÖI | H18: TOI | I18: KL | K18: ka/L | L18: ka/T | M18: ka/KL | N18: KL-% | P18: ENSIMMÄISET RUNKOSARJASSA
B19: Runkosarja | E19: =PRODUCT(E15) -> 2 | F19: =PRODUCT(F15) -> 0 | G19: =PRODUCT(G15) -> 0 | H19: =PRODUCT(H15) -> 0 | I19: =PRODUCT(I15) -> 1 | K19: =PRODUCT((F19+G19)/E19) -> 0.00 | L19: =PRODUCT(H19/E19) -> 0.00 | M19: =PRODUCT(I19/E19) -> 0.50 | N19: =PRODUCT(N14) -> 0.0 % | O19: =PRODUCT(O15) -> 6 | P19: Ottelu | R19: 09.07. 2021 JymyJussit - JoMa 0-1 (1-1, 1-5) | AB19: 1. ottelu | AF19: 22 v 3 kk 14 pv
B20: Ylempi loppusarja | O20: 0 | P20: Lyöty
B21: Alempi loppusarja | E21: =SUM(W15) -> 3 | F21: =SUM(X15) -> 0 | G21: =SUM(Y15) -> 0 | H21: =SUM(Z15) -> 1 | I21: =SUM(AA15) -> 6 | K21: =PRODUCT((F21+G21)/E21) -> 0.00 | L21: =PRODUCT(H21/E21) -> 0.33 | M21: =PRODUCT(I21/E21) -> 2.00 | N21: =PRODUCT(I21/O21) -> 46.2 % | O21: 13 | P21: Tuotu
B22: KAIKKI | E22: =SUM(E19:E21) -> 5 | F22: =SUM(F19:F21) -> 0 | G22: =SUM(G19:G21) -> 0 | H22: =SUM(H19:H21) -> 1 | I22: =SUM(I19:I21) -> 7 | K22: =PRODUCT((F22+G22)/E22) -> 0.00 | L22: =PRODUCT(H22/E22) -> 0.20 | M22: =PRODUCT(I22/E22) -> 1.40 | N22: =PRODUCT(I22/O22) -> 36.8 % | O22: =SUM(O19:O21) -> 19 | P22: Kunnari
B24: Seurat | D24: PKP = Puurtilan Kisa-Pojat (1948), kasvattajaseura
D25: PuPe = Puijon Pesis (2009)
D26: JoMa = Joensuun Maila (1957)

Sheet MYP, MSS
B1: Nestori Moisio | E1: 25.3.1999 Vaasa
B2: YKKÖSPESIS | E2: Runkosarja | L2: Runkosarja TOP-10 | Q2: Jatkosarjat | X2: SUOMENSARJA | AA2: Runkosarja | AH2: Runkosarja TOP-10 | AM2: Jatkosarjat
B3: Vuosi | C3: Sija | D3: Seura | E3: OTT | F3: KUN | G3: LÖI | H3: TOI | I3: KL | J3: KL-% | L3: LÖI | M3: TOI | N3: L+T | O3: KL | Q3: OTT | R3: KUN | S3: LÖI | T3: TOI | U3: KL | V3: KL-% | X3: Vuosi | Y3: Sija | Z3: Seura | AA3: OTT | AB3: KUN | AC3: LÖI | AD3: TOI | AE3: KL | AF3: KL-% | AH3: LÖI | AI3: TOI | AJ3: L+T | AK3: KL | AM3: OTT | AN3: KUN | AO3: LÖI | AP3: TOI | AQ3: KL | AR3: KL-%
X4: 2015 | Y4: 9. | Z4: PKP | AA4: 4 | AB4: 0 | AC4: 0 | AD4: 2 | AE4: 8 | AF4: 38.1 % | AG4: 21
X5: 2016 | Y5: 8. | Z5: PKP | AA5: 14 | AB5: 0 | AC5: 5 | AD5: 5 | AE5: 47 | AF5: 53.4 % | AG5: 88
B6: 2017 | C6: 6. | D6: PuPe | E6: 3 | F6: 0 | G6: 0 | H6: 1 | I6: 6 | J6: 46.2 % | K6: 13 | X6: 2017 | Y6: 1. | Z6: PuPe 2 | AA6: 16 | AB6: 2 | AC6: 25 | AD6: 22 | AE6: 77 | AF6: 60.6 % | AG6: 127 | AJ6: 10. | AM6: 7 | AN6: 0 | AO6: 8 | AP6: 5 | AQ6: 28 | AR6: 52.8 % | AS6: 53
X7: 2018 | Y7: 4. | Z7: PuPe | AA7: 20 | AB7: 1 | AC7: 4 | AD7: 10 | AE7: 60 | AF7: 49.6 % | AG7: 121 | AM7: 5 | AN7: 0 | AO7: 0 | AP7: 0 | AQ7: 16 | AR7: 64.0 % | AS7: 25
B8: 2019 | C8: 3. | D8: PuPe | E8: 22 | F8: 0 | G8: 5 | H8: 13 | I8: 56 | J8: 45.2 % | K8: 124 | Q8: 4 | R8: 2 | S8: 1 | T8: 5 | U8: 17 | V8: 40.5 % | W8: 42
B9: 2020 | C9: 3. | D9: PuPe | E9: 14 | F9: 2 | G9: 3 | H9: 13 | I9: 60 | J9: 65.9 % | K9: 91 | Q9: 5 | R9: 0 | S9: 1 | T9: 5 | U9: 18 | V9: 54.5 % | W9: 33
B10: 2021 | C10: 3. | D10: PuPe | E10: 20 | F10: 0 | G10: 5 | H10: 27 | I10: 96 | J10: 70.6 % | K10: 136 | M10: 8. | O10: 9. | Q10: 3 | R10: 0 | S10: 1 | T10: 0 | U10: 4 | V10: 44.4 % | W10: 9
B11: 2022 | C11: 4. | D11: PuPe | E11: 23 | F11: 0 | G11: 5 | H11: 11 | I11: 68 | J11: 54.0 % | K11: 126 | Q11: 3 | R11: 0 | S11: 0 | T11: 1 | U11: 11 | V11: 64.7 % | W11: 17
B12: 2023 | C12: 3. | D12: PuPe | E12: 24 | F12: 1 | G12: 6 | H12: 14 | I12: 75 | J12: 58.6 % | K12: 128 | Q12: 2 | R12: 0 | S12: 0 | T12: 1 | U12: 11 | V12: 84.6 % | W12: 13
B13: YHTEENSÄ | E13: =SUM(E4:E12) -> 106 | F13: =SUM(F4:F12) -> 3 | G13: =SUM(G4:G12) -> 24 | H13: =SUM(H4:H12) -> 79 | I13: =SUM(I4:I12) -> 361 | J13: =PRODUCT(I13/K13) -> 58.4 % | K13: =SUM(K4:K12) -> 618 | Q13: =SUM(Q4:Q12) -> 17 | R13: =SUM(R4:R12) -> 2 | S13: =SUM(S4:S12) -> 3 | T13: =SUM(T4:T12) -> 12 | U13: =SUM(U4:U12) -> 61 | V13: =PRODUCT(U13/W13) -> 53.5 % | W13: =SUM(W4:W12) -> 114 | X13: YHTEENSÄ | AA13: =SUM(AA4:AA12) -> 54 | AB13: =SUM(AB4:AB12) -> 3 | AC13: =SUM(AC4:AC12) -> 34 | AD13: =SUM(AD4:AD12) -> 39 | AE13: =SUM(AE4:AE12) -> 192 | AF13: =PRODUCT(AE13/AG13) -> 53.8 % | AG13: =SUM(AG4:AG12) -> 357 | AM13: =SUM(AM4:AM12) -> 12 | AN13: =SUM(AN4:AN12) -> 0 | AO13: =SUM(AO4:AO12) -> 8 | AP13: =SUM(AP4:AP12) -> 5 | AQ13: =SUM(AQ4:AQ12) -> 44 | AR13: =PRODUCT(AQ13/AS13) -> 56.4 % | AS13: =SUM(AS4:AS12) -> 78
B15: KAIKKI OTTELUT | E15: OTT | F15: KUN | G15: LÖI | H15: TOI | I15: KL | J15: KL-% | L15: ka/L | M15: ka/T | N15: ka/l+t | O15: ka/kl | R15: Seurat | T15: PKP = Puurtilan Kisa-Pojat (1948), kasvattajaseura
B16: SUPERPESIS | E16: 5 | F16: 0 | G16: 0 | H16: 1 | I16: 7 | J16: 36.8 % | K16: =PRODUCT(I16/J16) -> 19.02173913 | L16: =PRODUCT((F16+G16)/E16) -> 0.00 | M16: =PRODUCT(H16/E16) -> 0.20 | N16: =PRODUCT((F16+G16+H16)/E16) -> 0.20 | O16: =PRODUCT(I16/E16) -> 1.40 | T16: PuPe = Puijon Pesis (2009)
B17: YKKÖSPESIS | E17: =PRODUCT(E13+Q13) -> 123 | F17: =PRODUCT(F13+R13) -> 5 | G17: =PRODUCT(G13+S13) -> 27 | H17: =PRODUCT(H13+T13) -> 91 | I17: =PRODUCT(I13+U13) -> 422 | J17: =PRODUCT(I17/K17) -> 57.7 % | K17: =PRODUCT(K13+W13) -> 732 | L17: =PRODUCT((F17+G17)/E17) -> 0.26 | M17: =PRODUCT(H17/E17) -> 0.74 | N17: =PRODUCT((F17+G17+H17)/E17) -> 1.00 | O17: =PRODUCT(I17/E17) -> 3.43 | T17: JoMa = Joensuun Maila (1957)
B18: SUOMENSARJA | E18: =PRODUCT(AA13+AM13) -> 66 | F18: =PRODUCT(AB13+AN13) -> 3 | G18: =PRODUCT(AC13+AO13) -> 42 | H18: =PRODUCT(AD13+AP13) -> 44 | I18: =PRODUCT(AE13+AQ13) -> 236 | J18: =PRODUCT(I18/K18) -> 54.3 % | K18: =PRODUCT(AG13+AS13) -> 435 | L18: =PRODUCT((F18+G18)/E18) -> 0.68 | M18: =PRODUCT(H18/E18) -> 0.67 | N18: =PRODUCT((F18+G18+H18)/E18) -> 1.35 | O18: =PRODUCT(I18/E18) -> 3.58
B19: YHTEENSÄ | E19: =SUM(E16:E18) -> 194 | F19: =SUM(F16:F18) -> 8 | G19: 69 | H19: 136 | I19: 665 | J19: =PRODUCT(I19/K19) -> 56.1 % | K19: =SUM(K16:K18) -> 1186.021739 | L19: =PRODUCT((F19+G19)/E19) -> 0.40 | M19: =PRODUCT(H19/E19) -> 0.70 | N19: =PRODUCT((F19+G19+H19)/E19) -> 1.10 | O19: =PRODUCT(I19/E19) -> 3.43
